bitfinex-derivatives/quotes_BTCF0:USTF0_20250809
["timestamp","ask_amount","ask_price","bid_price","bid_amount"]
[1754729977362,0.26585063,117190.0,117180.0,0.6143245]
[1754729978261,0.52554755,117190.0,117180.0,0.6143245]
[1754729980061,0.52554755,117190.0,117180.0,0.19493835]
[1754729980466,0.52554755,117190.0,117180.0,0.71433219]
[1754729980871,0.52554755,117190.0,117180.0,0.19493835]
[1754729981064,0.52554755,117190.0,117180.0,0.45463527]
[1754729982169,0.26585063,117190.0,117180.0,0.71433219]
[1754729982362,0.52554755,117190.0,117180.0,0.71433219]
[1754729982561,0.52554755,117190.0,117180.0,0.45463527]
[1754729983271,0.50810692,117190.0,117180.0,0.71433219]
[1754729983659,0.50810692,117190.0,117180.0,0.71533219]
[1754729984566,0.50810692,117190.0,117180.0,0.71633219]
[1754729985174,0.24841,117190.0,117180.0,0.71633219]
[1754729985673,0.50810692,117190.0,117180.0,0.71633219]
[1754729986170,0.24841,117190.0,117180.0,0.71633219]
[1754729988475,0.20381,117190.0,117180.0,0.71633219]
[1754729988664,0.24889,117190.0,117180.0,0.71633219]
[1754729989677,0.24889,117190.0,117180.0,0.19693835]
[1754729990074,0.24889,117190.0,117180.0,0.71633219]
[1754729992678,0.2448,117190.0,117180.0,0.71633219]
[1754729993380,0.2448,117190.0,117180.0,0.77747061]
[1754729995682,0.2448,117190.0,117180.0,0.25807677]
[1754729995881,0.2448,117190.0,117180.0,0.77747061]
[1754729996882,0.14954,117190.0,117180.0,0.77747061]
[1754729997082,0.2448,117190.0,117180.0,0.77747061]
[1754729999283,0.2448,117190.0,117180.0,1.13827061]
[1754730001278,0.4460938,117220.0,117210.0,0.0853002]
[1754730001486,0.8750269,117220.0,117210.0,0.34499712]
[1754730001683,0.85786692,117220.0,117210.0,0.34499712]
[1754730001982,1.11756384,117220.0,117210.0,0.0853002]
[1754730002181,0.85786692,117220.0,117210.0,0.0853002]
[1754730002382,0.49706692,117220.0,117210.0,0.0853002]
[1754730002688,1.20485674,117220.0,117210.0,0.0853002]
[1754730002986,0.23737,117210.0,117200.0,1.20750606]
[1754730003180,0.49706692,117210.0,117200.0,1.20750606]
[1754730003387,0.3226775,117200.0,117190.0,0.67782826]
[1754730003584,0.84207134,117200.0,117190.0,1.06098]
[1754730003884,0.49706692,117200.0,117190.0,1.32067692]
[1754730004388,0.04692,117200.0,117190.0,1.68147692]
[1754730004589,0.04692,117200.0,117190.0,1.74256518]
[1754730005280,0.04692,117200.0,117190.0,1.48286826]
[1754730005480,0.49706692,117200.0,117190.0,1.74256518]
[1754730005685,0.23737,117200.0,117190.0,1.74256518]
[1754730005881,0.49706692,117200.0,117190.0,1.74256518]
[1754730006083,0.49706692,117200.0,117190.0,1.68147692]
[1754730006483,0.75676384,117200.0,117190.0,0.25594]
[1754730006786,0.49706692,117200.0,117190.0,1.68127692]
[1754730007387,0.49706692,117200.0,117190.0,1.32047692]
[1754730007791,0.49706692,117200.0,117190.0,1.68127692]
[1754730008087,0.49706692,117200.0,117190.0,1.74236518]
[1754730008292,0.44789692,117200.0,117190.0,1.68127692]
[1754730008592,0.50038692,117200.0,117190.0,1.48266826]
[1754730008784,0.50038692,117200.0,117190.0,1.68127692]
[1754730009377,0.50038692,117200.0,117190.0,1.32047692]
[1754730009581,0.24069,117200.0,117190.0,1.32047692]
[1754730009790,0.50038692,117200.0,117190.0,1.32047692]
[1754730010086,0.30661692,117200.0,117190.0,1.32047692]
[1754730010291,0.50224692,117200.0,117190.0,1.68127692]
[1754730011091,0.24255,117200.0,117190.0,1.68127692]
[1754730011292,0.50224692,117200.0,117190.0,1.68127692]
[1754730012486,0.24255,117200.0,117190.0,1.68127692]
[1754730012794,0.50224692,117200.0,117190.0,1.45411102]
[1754730012999,0.50224692,117200.0,117190.0,1.62473922]
[1754730013787,0.24255,117200.0,117190.0,1.62473922]
[1754730014889,0.50224692,117200.0,117190.0,1.62473922]
[1754730015998,0.50224692,117200.0,117190.0,1.3650423]
[1754730016295,0.50224692,117200.0,117190.0,1.62473922]
[1754730016484,0.24255,117200.0,117190.0,1.62473922]
[1754730016686,0.24255,117200.0,117190.0,1.71121114]
[1754730019998,0.24255,117200.0,117190.0,1.71321114]
[1754730021498,0.24255,117200.0,117190.0,1.71421114]
[1754730021886,0.24255,117200.0,117190.0,1.3680423]
[1754730022090,0.24255,117200.0,117190.0,1.71421114]
[1754730023799,0.24255,117200.0,117190.0,1.7752994]
[1754730025000,0.19646,117200.0,117190.0,1.7752994]
[1754730025196,0.15354,117210.0,117200.0,0.0853072]
[1754730025493,0.19963,117210.0,117200.0,0.0853072]
[1754730025699,0.54579884,117210.0,117200.0,0.0853072]
[1754730025999,0.59322884,117210.0,117200.0,0.0853072]
[1754730026399,0.59322884,117210.0,117200.0,0.4461072]
[1754730026897,0.24706,117210.0,117200.0,0.4461072]
[1754730028196,0.24706,117210.0,117200.0,0.50719546]
[1754730028895,0.24706,117210.0,117200.0,0.50819546]
[1754730030401,0.24706,117210.0,117200.0,0.8543643]
[1754730034097,0.24706,117210.0,117200.0,0.50819546]
[1754730036200,0.24706,117210.0,117200.0,0.8543643]
[1754730036599,0.24706,117210.0,117200.0,0.50819546]
[1754730036801,0.24706,117210.0,117200.0,0.76777549]
[1754730036802,0.50664003,117210.0,117200.0,0.76777549]
[1754730037507,0.50664003,117210.0,117200.0,0.50819546]
[1754730037707,0.50664003,117210.0,117200.0,0.76777549]
[1754730038205,0.50664003,117210.0,117200.0,0.50819546]
[1754730038505,0.50664003,117210.0,117200.0,0.76777549]
[1754730038900,0.24706,117210.0,117200.0,0.50819546]
[1754730039101,0.50664003,117210.0,117200.0,0.70668723]
[1754730039806,0.50664003,117210.0,117200.0,0.76777549]
[1754730040007,0.24706,117210.0,117200.0,0.50819546]
[1754730040309,0.50664003,117210.0,117200.0,0.76777549]
[1754730040800,0.24706,117210.0,117200.0,0.50819546]
[1754730040999,0.50664003,117210.0,117200.0,0.50819546]
[1754730041405,0.50664003,117210.0,117200.0,0.76777549]
[1754730041707,0.50664003,117210.0,117200.0,0.50819546]
[1754730041905,0.50664003,117210.0,117200.0,1.02735552]
[1754730042796,0.05143,117210.0,117200.0,0.96626726]
[1754730043002,0.31101003,117210.0,117200.0,0.96626726]
[1754730043201,0.50991003,117210.0,117200.0,0.96626726]
[1754730043506,0.25033,117210.0,117200.0,1.02735552]
[1754730044400,0.25033,117210.0,117200.0,0.50819546]
[1754730044602,0.25033,117210.0,117200.0,1.02735552]
[1754730045104,0.25033,117210.0,117200.0,0.50819546]
[1754730045404,0.50991003,117210.0,117200.0,0.76777549]
[1754730045809,0.25033,117210.0,117200.0,0.76777549]
[1754730048212,0.25033,117210.0,117200.0,0.50819546]
[1754730048402,0.50991003,117210.0,117200.0,0.50819546]
[1754730048598,0.50991003,117210.0,117200.0,1.02735552]
[1754730049004,0.25033,117210.0,117200.0,1.02735552]
[1754730050606,0.25033,117210.0,117200.0,0.50819546]
[1754730050806,0.25033,117210.0,117200.0,1.02735552]
[1754730051610,0.05143,117210.0,117200.0,0.50819546]
[1754730051911,0.50991003,117210.0,117200.0,1.02735552]
[1754730052114,0.25033,117210.0,117200.0,1.02735552]
[1754730052418,0.50991003,117210.0,117200.0,1.02735552]
[1754730052711,0.25033,117210.0,117200.0,1.02735552]
[1754730053116,0.24633,117210.0,117200.0,0.96626726]
[1754730055108,0.20171,117210.0,117200.0,1.02735552]
[1754730055410,0.24633,117210.0,117200.0,1.02735552]
[1754730056017,0.24633,117210.0,117200.0,0.50819546]
[1754730056214,0.24633,117210.0,117200.0,1.02735552]
[1754730056402,0.24633,117210.0,117200.0,0.96626726]
[1754730056822,0.24633,117210.0,117200.0,0.4471072]
[1754730057114,0.50591003,117210.0,117200.0,0.70668723]
[1754730057321,0.24633,117210.0,117200.0,0.76770008]
[1754730057508,0.50591003,117210.0,117200.0,0.76770008]
[1754730058215,0.50591003,117210.0,117200.0,0.50812005]
[1754730058612,0.50591003,117210.0,117200.0,0.76770008]
[1754730059014,0.24633,117210.0,117200.0,0.76770008]
[1754730059316,0.50591003,117210.0,117200.0,0.76770008]
[1754730059818,0.24633,117210.0,117200.0,0.50812005]
[1754730060014,0.50591003,117210.0,117200.0,0.76770008]
[1754730060209,0.24633,117210.0,117200.0,0.50812005]
[1754730060405,0.50591003,117210.0,117200.0,0.76770008]
[1754730061916,0.50591003,117210.0,117200.0,0.50812005]
[1754730062117,0.50591003,117210.0,117200.0,0.76770008]
[1754730062621,0.50591003,117210.0,117200.0,0.50812005]
[1754730062920,0.50591003,117210.0,117200.0,0.76770008]
[1754730063416,0.50591003,117210.0,117200.0,0.70668723]
[1754730063617,0.24633,117210.0,117200.0,0.70668723]
[1754730063821,0.50591003,117210.0,117200.0,0.70668723]
[1754730064718,0.50591003,117210.0,117200.0,0.34588723]
[1754730064719,0.60713,117210.0,117200.0,0.34588723]
[1754730064930,0.50591003,117210.0,117200.0,0.34588723]
[1754730065110,0.86671003,117210.0,117200.0,0.34588723]
[1754730067231,0.60713,117210.0,117200.0,0.34588723]
[1754730067529,0.86671003,117210.0,117200.0,0.34588723]
[1754730067729,1.21159006,117210.0,117200.0,0.8881472]
[1754730067925,1.22892416,117210.0,117200.0,0.80284]
[1754730068522,1.22892416,117210.0,117200.0,0.001]
[1754730068727,1.22892416,117210.0,117200.0,0.0863072]
[1754730069030,0.96934413,117210.0,117200.0,0.001]
[1754730069228,0.96934413,117210.0,117200.0,0.0863072]
[1754730069629,0.7107641,117210.0,117200.0,0.0863072]
[1754730069928,0.97134413,117210.0,117200.0,0.0853072]
[1754730072637,1.05795429,117210.0,117200.0,0.0853072]
[1754730072832,0.7117641,117210.0,117200.0,0.0853072]
[1754730073137,1.05795429,117210.0,117200.0,0.0853072]
[1754730073328,1.04062019,117210.0,117200.0,0.0853072]
[1754730075246,0.69443,117210.0,117200.0,0.0853072]
[1754730075538,1.04062019,117210.0,117200.0,0.0853072]
[1754730075740,0.95532019,117210.0,117200.0,0.0853072]
[1754730076242,0.60913,117210.0,117200.0,0.0853072]
[1754730076439,1.04062009,117210.0,117200.0,0.0853072]
[1754730080041,0.6944299,117210.0,117200.0,0.0853072]
[1754730080240,1.04062009,117210.0,117200.0,0.0853072]
[1754730081742,0.6944299,117210.0,117200.0,0.0853072]
[1754730082242,1.04062009,117210.0,117200.0,0.0853072]
[1754730082447,0.6944299,117210.0,117200.0,0.0853072]
[1754730082636,1.04062009,117210.0,117200.0,0.0853072]
[1754730084749,0.95532019,117210.0,117200.0,0.0853072]
[1754730085050,0.60913,117210.0,117200.0,0.43149739]
[1754730085448,0.60913,117210.0,117200.0,0.0853072]
[1754730086248,0.60813,117210.0,117200.0,0.0853072]
[1754730087151,0.60813,117210.0,117200.0,0.43149739]
[1754730087342,0.60713,117210.0,117200.0,0.43149739]
[1754730087542,0.24633,117210.0,117200.0,0.43249739]
[1754730088350,0.24633,117210.0,117200.0,0.14732005]
[1754730088550,0.24633,117210.0,117200.0,0.49351024]
[1754730088951,0.24633,117210.0,117200.0,0.14732005]
[1754730090853,0.28599995,117200.0,117190.0,2.11731466]
[1754730091149,0.43162995,117200.0,117190.0,2.11731466]
[1754730092450,0.43162995,117200.0,117190.0,2.12031466]
[1754730093744,0.24607,117200.0,117190.0,2.12031466]
[1754730094448,0.04918,117200.0,117190.0,2.12031466]
[1754730094653,0.04918,117200.0,117190.0,2.29322869]
[1754730095053,0.04918,117200.0,117190.0,2.3696326]
[1754730096457,0.04918,117200.0,117190.0,1.85052838]
[1754730096755,0.04918,117200.0,117190.0,2.3696326]
[1754730100157,0.86768018,117220.0,117210.0,0.0853]
[1754730100355,0.86768018,117220.0,117210.0,1.14633211]
[1754730100756,0.60812807,117220.0,117210.0,1.14633211]
[1754730102863,0.60912807,117220.0,117210.0,1.14633211]
[1754730103364,0.60912807,117220.0,117210.0,1.20727411]
[1754730104865,0.55593807,117220.0,117210.0,1.20727411]
[1754730105166,0.60912807,117220.0,117210.0,1.20727411]
[1754730105361,0.60912807,117220.0,117210.0,1.14633211]
[1754730105666,0.60912807,117220.0,117210.0,1.20727411]
[1754730106066,0.60912807,117220.0,117210.0,0.947722]
[1754730106268,0.60912807,117220.0,117210.0,1.20727411]
[1754730107367,0.24832807,117220.0,117210.0,1.20727411]
[1754730108871,0.24832807,117220.0,117210.0,1.56807411]
[1754730109068,0.14894807,117220.0,117210.0,1.56807411]
[1754730109367,0.24832807,117220.0,117210.0,1.56807411]
[1754730110573,0.14894807,117220.0,117210.0,1.82762622]
[1754730111163,0.20213807,117220.0,117210.0,1.82762622]
[1754730111372,0.24832807,117220.0,117210.0,1.82762622]
[1754730112373,0.24832807,117220.0,117210.0,1.82759798]
[1754730113475,0.24832807,117220.0,117210.0,1.76668422]
[1754730113777,0.24832807,117220.0,117210.0,2.03378422]
[1754730117880,0.24832807,117220.0,117210.0,1.51468]
[1754730118083,0.24832807,117220.0,117210.0,1.77423211]
[1754730119681,0.24832807,117220.0,117210.0,1.41343211]
[1754730119882,0.24832807,117220.0,117210.0,1.77423211]
[1754730123286,0.24832807,117220.0,117210.0,1.57559376]
[1754730123586,0.24832807,117220.0,117210.0,1.83514587]
[1754730124384,7e-08,117220.0,117210.0,2.27326424]
[1754730124596,0.1503,117250.0,117240.0,0.0852784]
[1754730124893,0.86365211,117250.0,117240.0,0.95404348]
[1754730125078,0.86365211,117250.0,117240.0,1.21359559]
[1754730125273,0.6041,117250.0,117240.0,1.21359559]
[1754730125575,0.6041,117250.0,117240.0,1.4731477]
[1754730125789,0.2463,117250.0,117240.0,1.4731477]
[1754730126086,0.2493,117250.0,117240.0,1.4731477]
[1754730126288,0.2493,117250.0,117240.0,0.95404348]
[1754730126586,0.50885211,117250.0,117240.0,1.21359559]
[1754730126790,0.50585211,117250.0,117240.0,1.21359559]
[1754730126981,0.50785211,117250.0,117240.0,1.21359559]
[1754730127179,0.86865211,117250.0,117240.0,1.21359559]
[1754730127481,0.86865211,117250.0,117240.0,1.25032498]
[1754730127682,0.67216211,117250.0,117240.0,1.25032498]
[1754730127983,0.31136211,117250.0,117240.0,1.50987709]
[1754730128378,0.10382,117250.0,117240.0,1.50987709]
[1754730128584,0.50167211,117250.0,117240.0,1.25032498]
[1754730129086,0.50167211,117250.0,117240.0,0.95388348]
[1754730129087,1.12202422,117250.0,117240.0,0.95388348]
[1754730129283,0.86247211,117250.0,117240.0,0.95388348]
[1754730129991,0.94774321,117250.0,117240.0,0.95388348]
[1754730130890,1.03414702,117250.0,117240.0,0.95388348]
[1754730132091,0.94887592,117250.0,117240.0,0.95388348]
[1754730132793,0.94887592,117250.0,117240.0,0.74140348]
[1754730132992,0.94887592,117250.0,117240.0,0.82668188]
[1754730134094,0.94887592,117250.0,117240.0,0.89416077]
[1754730134292,0.60292,117250.0,117240.0,0.89416077]
[1754730134496,0.94887592,117250.0,117240.0,0.89416077]
[1754730134792,0.60292,117250.0,117240.0,0.89416077]
[1754730136196,0.94887592,117250.0,117240.0,0.89416077]
[1754730143696,0.96748762,117250.0,117240.0,0.89416077]
[1754730144698,1.05275872,117250.0,117240.0,0.89416077]
[1754730145202,1.05275872,117250.0,117240.0,0.15275719]
[1754730145394,1.05275872,117250.0,117240.0,0.06747889]
[1754730145591,1.05275872,117250.0,117240.0,0.15275719]
[1754730145903,0.3214383,117240.0,117230.0,0.00012807]
[1754730146204,0.3214456,117230.0,117220.0,0.1705807]
[1754730146405,1.04681322,117230.0,117220.0,0.1705807]
[1754730146597,1.05899326,117230.0,117220.0,0.2015307]
[1754730147102,1.14427886,117230.0,117220.0,0.2015307]
[1754730147302,1.14427886,117230.0,117220.0,0.1705807]
[1754730147797,1.14427886,117230.0,117210.0,1.096575]
[1754730147798,0.0726593,117220.0,117210.0,1.096575]
[1754730148104,0.6696193,117220.0,117210.0,1.096575]
[1754730149000,1.01557522,117220.0,117210.0,0.255895]
[1754730149193,1.11061316,117220.0,117210.0,1.055655]
[1754730149904,0.6696193,117220.0,117210.0,1.056655]
[1754730150097,0.6696193,117220.0,117210.0,1.097455]
[1754730150604,0.6696193,117220.0,117210.0,1.101455]
[1754730150908,0.59696,117220.0,117210.0,1.0299796]
[1754730151400,0.94291592,117220.0,117210.0,1.0707796]
[1754730151703,0.59696,117220.0,117210.0,1.0707796]
[1754730152402,0.59696,117220.0,117210.0,1.0299796]
[1754730152403,0.94291592,117220.0,117210.0,1.0299796]
[1754730153004,0.94291592,117220.0,117210.0,1.0707796]
[1754730155410,0.59696,117220.0,117210.0,1.0707796]
[1754730158503,0.94291592,117220.0,117210.0,1.0707796]
[1754730158699,0.59696,117220.0,117210.0,1.0707796]
[1754730158905,0.46841,117220.0,117210.0,1.41673552]
[1754730159102,0.5625,117220.0,117210.0,1.41673552]
[1754730161315,0.59415,117220.0,117210.0,1.41673552]
[1754730165112,0.50006,117220.0,117210.0,1.41673552]
[1754730165313,0.59415,117220.0,117210.0,1.0707796]
[1754730168619,0.85369439,117220.0,117210.0,1.33032399]
[1754730169004,0.59415,117220.0,117210.0,1.33032399]
[1754730169209,0.85369439,117220.0,117210.0,1.33032399]
[1754730170215,0.59415,117220.0,117210.0,1.33032399]
[1754730170416,0.85369439,117220.0,117210.0,1.33032399]
[1754730172813,1.11323878,117220.0,117210.0,0.2608946]
[1754730173020,1.11323878,117220.0,117210.0,1.0599346]
[1754730173319,1.11323878,117220.0,117210.0,0.974635]
[1754730174017,1.11323878,117220.0,117210.0,1.006995]
[1754730176122,1.11323878,117220.0,117210.0,0.702275]
[1754730176418,1.19853138,117220.0,117210.0,0.87287]
[1754730178822,1.11323878,117220.0,117210.0,0.87287]
[1754730179019,0.59415,117220.0,117210.0,0.87287]
[1754730179217,1.11323878,117220.0,117210.0,1.13241439]
[1754730180527,1.19853138,117220.0,117210.0,0.87287]
[1754730181026,1.11323878,117220.0,117210.0,0.87287]
[1754730182621,1.19853138,117220.0,117210.0,0.87287]
[1754730182929,1.11323878,117220.0,117210.0,0.87287]
[1754730183427,1.11323878,117220.0,117210.0,1.13241439]
[1754730184925,0.59415,117220.0,117210.0,1.13241439]
[1754730185317,1.11323878,117220.0,117210.0,1.13241439]
[1754730185518,0.85369439,117220.0,117210.0,1.13241439]
[1754730185724,1.11323878,117220.0,117210.0,0.87287]
[1754730186319,1.11323878,117220.0,117210.0,1.13241439]
[1754730187526,1.11323878,117220.0,117210.0,0.87287]
[1754730189722,1.19853128,117220.0,117210.0,0.87287]
[1754730190022,1.19853128,117220.0,117200.0,0.24796235]
[1754730190023,0.3212098,117210.0,117200.0,0.03655155]
[1754730190218,0.14323,117200.0,117190.0,1.054173]
[1754730190524,1.11579878,117200.0,117190.0,1.08483641]
[1754730192028,1.20110598,117200.0,117190.0,0.9688603]
[1754730192627,1.02827002,117200.0,117190.0,0.9688603]
[1754730192822,1.02827002,117200.0,117190.0,0.824691]
[1754730193023,1.02827002,117200.0,117190.0,0.9401237]
[1754730193226,1.02827002,117200.0,117190.0,0.9391237]
[1754730193422,1.02827002,117200.0,117190.0,0.9401237]
[1754730199033,1.02827002,117200.0,117190.0,0.03112]
[1754730199234,1.02827002,117200.0,117190.0,0.1164344]
[1754730199533,1.02827002,117200.0,117190.0,0.0863144]
[1754730200031,1.02827002,117200.0,117190.0,0.001]
[1754730200032,1.46921274,117200.0,117190.0,0.001]
[1754730200428,0.7767071,117200.0,117190.0,0.001]
[1754730200631,0.7767071,117200.0,117190.0,0.0863145]
[1754730200932,1.12295992,117200.0,117190.0,0.0863145]
[1754730203134,1.46921274,117200.0,117190.0,0.0863145]
[1754730203323,1.1415734,117200.0,117190.0,0.0863145]
[1754730203525,1.65848222,117200.0,117190.0,0.001]
[1754730203734,0.3212244,117190.0,117180.0,0.32333354]
[1754730204029,1.93490468,117190.0,117180.0,0.32333354]
[1754730204235,1.93490468,117190.0,117180.0,0.23801354]
[1754730205630,1.93490468,117190.0,117180.0,0.23901354]
[1754730206734,1.93490468,117190.0,117180.0,0.24001354]
[1754730207834,0.45261816,117180.0,117170.0,0.26985333]
[1754730208035,1.15967098,117180.0,117170.0,0.26985333]
[1754730208236,1.25335193,117180.0,117170.0,0.26985333]
[1754730209034,1.25335193,117180.0,117170.0,0.27185333]
[1754730210134,1.25335193,117180.0,117170.0,0.27385333]
[1754730210929,1.12196547,117180.0,117170.0,0.27385333]
[1754730213931,1.03664377,117180.0,117170.0,0.27385333]
[1754730214726,1.12196557,117180.0,117170.0,0.27385333]
[1754730215434,1.03664377,117180.0,117170.0,0.27385333]
[1754730215933,1.12196547,117180.0,117170.0,0.27385333]
[1754730217636,1.12196547,117180.0,117170.0,0.24373333]
[1754730218136,1.12196547,117180.0,117170.0,0.27417333]
[1754730220239,1.12196547,117180.0,117170.0,0.24373333]
[1754730220935,1.12196547,117180.0,117170.0,0.15840453]
[1754730221831,0.085329,117170.0,117160.0,0.3413416]
[1754730222036,0.682729,117170.0,117160.0,0.3413416]
[1754730222230,1.83657206,117170.0,117160.0,0.3413416]
[1754730222533,1.92190106,117170.0,117160.0,0.40923518]
[1754730222734,1.03777836,117170.0,117160.0,0.45520348]
[1754730223234,0.95244936,117170.0,117160.0,0.40923348]
[1754730223543,0.19336,117160.0,117150.0,1.08344348]
[1754730223744,1.07378024,117160.0,117150.0,1.12941348]
[1754730223945,1.11702024,117160.0,117150.0,1.15475348]
[1754730224644,0.94384008,117160.0,117150.0,1.15475348]
[1754730224846,0.94484008,117160.0,117150.0,1.15475348]
[1754730225045,0.94584008,117160.0,117150.0,1.15475348]
[1754730226046,0.94584008,117160.0,117150.0,1.08641618]
[1754730226346,0.94584008,117160.0,117150.0,1.01510618]
[1754730226543,0.94584008,117160.0,117150.0,1.06107618]
[1754730226746,0.94584008,117160.0,117150.0,1.08641618]
[1754730227438,0.94584008,117160.0,117150.0,1.15599495]
[1754730228750,0.94584008,117160.0,117150.0,1.08468495]
[1754730228945,0.94584008,117160.0,117150.0,1.15599495]
[1754730229145,0.94584008,117160.0,117150.0,1.18623552]
[1754730229351,0.5994,117160.0,117150.0,1.18623552]
[1754730229539,0.94584008,117160.0,117150.0,1.18623552]
[1754730230346,0.5994,117160.0,117150.0,1.18623552]
[1754730230547,0.94584008,117160.0,117150.0,1.18623552]
[1754730231146,0.94584008,117160.0,117150.0,1.22703552]
[1754730231842,0.5047,117160.0,117150.0,1.5734756]
[1754730232150,0.002,117160.0,117150.0,1.5734756]
[1754730232748,0.04784,117160.0,117150.0,1.5734756]
[1754730232949,0.04784,117160.0,117150.0,1.22703552]
[1754730237250,0.58504008,117160.0,117150.0,0.48191552]
[1754730237442,0.94584008,117160.0,117150.0,1.27935552]
[1754730237950,0.58504008,117160.0,117150.0,1.32015552]
[1754730238348,0.2386,117160.0,117150.0,1.32015552]
[1754730240441,0.58504008,117160.0,117150.0,1.32015552]
[1754730241048,0.58504008,117160.0,117150.0,1.27935552]
[1754730241452,0.58504008,117160.0,117150.0,1.32015552]
[1754730243053,0.5994,117160.0,117150.0,1.32015552]
[1754730243256,0.94584008,117160.0,117150.0,1.32015552]
[1754730243958,0.94584008,117160.0,117150.0,1.27935552]
[1754730244159,0.94584008,117160.0,117150.0,0.52271552]
[1754730244357,1.03117638,117160.0,117150.0,0.31728552]
[1754730244554,1.03117638,117160.0,117150.0,1.11456552]
[1754730244555,1.05574288,117160.0,117150.0,1.11456552]
[1754730244860,1.05574288,117160.0,117150.0,1.16176552]
[1754730246751,1.05574288,117160.0,117150.0,1.08652702]
[1754730246953,1.05574288,117160.0,117150.0,1.19804972]
[1754730248455,1.05574288,117160.0,117150.0,0.40076972]
[1754730248759,1.51766026,117160.0,117140.0,0.3029839]
[1754730248954,0.94622008,117150.0,117140.0,1.1966739]
[1754730249461,1.14921327,117150.0,117140.0,0.0853509]
[1754730249761,0.4661891,117140.0,117130.0,1.19354867]
[1754730249962,0.81262918,117140.0,117130.0,1.19354867]
[1754730250862,0.4661891,117140.0,117130.0,1.19354867]
[1754730251063,0.81262918,117140.0,117130.0,1.19354867]
[1754730252561,0.81262918,117140.0,117130.0,1.15274867]
[1754730252863,0.81262918,117140.0,117130.0,1.24919867]
[1754730253064,0.81362918,117140.0,117130.0,1.24919867]
[1754730253363,0.81462918,117140.0,117130.0,1.24919867]
[1754730253661,0.81462918,117140.0,117130.0,1.28999867]
[1754730254865,0.58742008,117140.0,117130.0,1.12620331]
[1754730255064,0.58742008,117140.0,117130.0,1.32232481]
[1754730256563,0.58742008,117140.0,117130.0,1.28152481]
[1754730257160,0.94822008,117140.0,117130.0,1.29175481]
[1754730257666,0.60178,117140.0,117130.0,1.29175481]
[1754730257968,0.94822008,117140.0,117130.0,1.29175481]
[1754730258353,0.60178,117140.0,117130.0,1.29175481]
[1754730258565,0.94822008,117140.0,117130.0,1.29175481]
[1754730258756,0.60178,117140.0,117130.0,1.29175481]
[1754730258960,1.12160932,117140.0,117130.0,1.29175481]
[1754730259355,1.12160932,117140.0,117130.0,1.20639871]
[1754730259668,1.12160932,117140.0,117130.0,1.20635871]
[1754730261466,1.12160932,117140.0,117130.0,1.18094661]
[1754730261967,0.002,117140.0,117130.0,1.70077593]
[1754730262168,0.002,117140.0,117130.0,2.06157593]
[1754730262469,0.76341466,117160.0,117150.0,0.1509635]
[1754730262654,1.11960932,117160.0,117150.0,1.0293935]
[1754730263260,2.20938638,117160.0,117130.0,0.53179726]
[1754730263460,1.11960932,117140.0,117130.0,0.46322075]
[1754730263669,1.11960932,117140.0,117130.0,0.37786325]
[1754730263864,1.20869829,117140.0,117130.0,0.37786325]
[1754730264064,1.20869829,117140.0,117130.0,0.41231325]
[1754730264664,1.03543026,117140.0,117130.0,0.41231325]
[1754730265367,0.81518129,117140.0,117130.0,0.37786325]
[1754730265671,0.48232,117140.0,117130.0,0.41331325]
[1754730265871,0.59978,117140.0,117130.0,0.41331325]
[1754730266276,0.94634129,117140.0,117130.0,0.41331325]
[1754730266574,0.94634129,117140.0,117130.0,0.41231325]
[1754730266977,0.94734129,117140.0,117130.0,0.41231325]
[1754730267670,0.70836129,117140.0,117130.0,0.37786325]
[1754730267874,0.58654129,117140.0,117130.0,0.41231325]
[1754730270470,0.04946,117140.0,117130.0,0.41231325]
[1754730270676,0.001,117140.0,117130.0,1.11967454]
[1754730271174,0.001,117140.0,117130.0,0.77311325]
[1754730271374,0.001,117140.0,117130.0,1.11967454]
[1754730271577,0.001,117140.0,117130.0,1.19607845]
[1754730272278,0.04846,117150.0,117130.0,1.36678935]
[1754730272480,0.04846,117150.0,117140.0,1.0293208]
[1754730272776,0.07776,117150.0,117140.0,1.0293208]
[1754730272980,0.2041,117150.0,117140.0,1.0293208]
[1754730273477,0.23898,117150.0,117140.0,1.0293208]
[1754730274070,0.23998,117150.0,117140.0,1.0293208]
[1754730274580,0.58654129,117150.0,117140.0,1.0293208]
[1754730275769,0.94734129,117150.0,117140.0,1.0293208]
[1754730275970,0.94734129,117150.0,117140.0,0.9479308]
[1754730276180,0.94734129,117150.0,117140.0,0.9948708]
[1754730278279,0.60078,117150.0,117140.0,0.9948708]
[1754730278479,0.94734129,117150.0,117140.0,0.9948708]
[1754730278986,0.94734129,117150.0,117140.0,1.0293208]
[1754730280068,0.60078,117150.0,117140.0,1.0293208]
[1754730280280,0.94734129,117150.0,117140.0,1.0293208]
[1754730280477,0.78612129,117150.0,117140.0,1.0293208]
[1754730281078,0.95333129,117150.0,117140.0,1.0293208]
[1754730281376,0.59253129,117150.0,117140.0,1.0293208]
[1754730281981,0.24597,117150.0,117140.0,1.0293208]
[1754730282181,0.54535129,117150.0,117140.0,1.0293208]
[1754730282482,0.59253129,117150.0,117140.0,1.0293208]
[1754730284084,0.95333129,117150.0,117140.0,1.0293208]
[1754730284785,0.95333129,117150.0,117140.0,0.9948708]
[1754730285185,1.03867479,117150.0,117140.0,0.9948708]
[1754730285589,1.03867479,117150.0,117140.0,0.8823108]
[1754730286187,1.03867479,117150.0,117140.0,0.1342808]
[1754730286388,1.03867479,117150.0,117140.0,0.0853508]
[1754730286686,1.20936869,117150.0,117140.0,0.0853508]
[1754730287989,2.00612869,117150.0,117140.0,0.0853508]
[1754730289086,2.10336883,117150.0,117140.0,0.0853508]
[1754730289986,1.93267493,117150.0,117140.0,0.0853508]
[1754730293392,1.95137421,117150.0,117140.0,0.0853508]
[1754730297284,0.2819507,117140.0,117130.0,0.23919714]
[1754730297595,1.03452199,117140.0,117130.0,0.23919714]
[1754730297798,1.05322157,117140.0,117130.0,0.23919714]
[1754730298093,1.03452199,117140.0,117130.0,0.23919714]
[1754730298293,0.60261,117140.0,117130.0,0.23919714]
[1754730298487,0.94917129,117140.0,117130.0,0.24019714]
[1754730299592,1.03452209,117140.0,117130.0,0.24019714]
[1754730299794,1.03452209,117140.0,117130.0,0.23919714]
[1754730300994,0.94917129,117140.0,117130.0,0.23919714]
[1754730301195,0.96753979,117140.0,117130.0,0.23919714]
[1754730301398,0.96853979,117140.0,117130.0,0.23919714]
[1754730301689,0.96853979,117140.0,117130.0,0.28812714]
[1754730303489,0.95017129,117140.0,117130.0,0.28812714]
[1754730304290,1.03552209,117140.0,117130.0,0.23919714]
[1754730304490,1.03552209,117140.0,117130.0,0.21503111]
[1754730306798,1.13149132,117140.0,117130.0,0.14653977]
[1754730307387,1.13149132,117140.0,117130.0,0.0853524]
[1754730307592,1.13149132,117140.0,117130.0,0.14653977]
[1754730307795,1.13149132,117140.0,117130.0,0.0853524]
[1754730311102,0.78493003,117140.0,117130.0,0.0853524]